[Event "Masterklassen 2025"]
[Site "Uppsala, Sweden"]
[Date "2025.06.30"]
[Round "3.14"]
[White "Soppela, Toni"]
[Black "Ask, Josef"]
[Result "1-0"]
[TimeControl "90 min for 40 move + 30 min with an increment of 30 sec starting move 1"]
[BlackTitle "FM"]
[WhiteFideId "1766163"]
[BlackFideId "1704583"]
[WhiteElo "2090"]
[BlackElo "2121"]

1. d4 {[%clk 01:30:55]} {[%emt 00:00:05]} Nf6 {[%clk 01:30:49]} {[%emt
00:00:10]} 2. c4 {[%clk 01:31:20]} {[%emt 00:00:06]} b5 {[%clk 01:31:06]}
{[%emt 00:00:13]} 3. cxb5 {[%clk 01:31:17]} {[%emt 00:00:33]} a6 {[%clk
01:31:23]} {[%emt 00:00:14]} 4. e3 {[%clk 01:31:15]} {[%emt 00:00:31]} Bb7
{[%clk 01:31:40]} {[%emt 00:00:13]} 5. Nf3 {[%clk 01:31:21]} {[%emt 00:00:24]}
e6 {[%clk 01:31:59]} {[%emt 00:00:12]} 6. Nc3 {[%clk 01:31:05]} {[%emt
00:00:45]} Be7 {[%clk 01:32:18]} {[%emt 00:00:11]} 7. a3 {[%clk 01:30:47]}
{[%emt 00:00:48]} axb5 {[%clk 01:31:40]} {[%emt 00:01:08]} 8. Bxb5 {[%clk
01:31:10]} {[%emt 00:00:07]} g5 {[%clk 01:27:42]} {[%emt 00:04:29]} 9. O-O
{[%clk 01:27:50]} {[%emt 00:03:46]} g4 {[%clk 01:26:59]} {[%emt 00:01:16]} 10.
Ne5 {[%clk 01:25:18]} {[%emt 00:03:01]} Rg8 {[%clk 01:27:01]} {[%emt 00:00:28]}
11. Re1 {[%clk 01:22:49]} {[%emt 00:02:59]} h5 {[%clk 01:25:47]} {[%emt
00:01:45]} 12. e4 {[%clk 01:06:38]} {[%emt 00:16:40]} c6 {[%clk 01:20:49]}
{[%emt 00:05:29]} 13. Bf1 {[%clk 00:57:46]} {[%emt 00:09:22]} Na6 {[%clk
01:11:16]} {[%emt 00:10:03]} 14. Bf4 {[%clk 00:52:38]} {[%emt 00:05:36]} Nc7
{[%clk 01:08:30]} {[%emt 00:03:17]} 15. b4 {[%clk 00:49:49]} {[%emt 00:03:20]}
Ba6 {[%clk 01:05:18]} {[%emt 00:03:42]} 16. Bxa6 {[%clk 00:47:04]} {[%emt
00:03:15]} Rxa6 {[%clk 01:05:38]} {[%emt 00:00:10]} 17. Qb3 {[%clk 00:47:00]}
{[%emt 00:00:32]} h4 {[%clk 01:02:39]} {[%emt 00:03:30]} 18. Nd3 {[%clk
00:32:55]} {[%emt 00:14:35]} Nh5 {[%clk 01:01:19]} {[%emt 00:01:50]} 19. Be3
{[%clk 00:26:28]} {[%emt 00:06:57]} g3 {[%clk 01:00:29]} {[%emt 00:01:20]} 20.
fxg3 {[%clk 00:26:40]} {[%emt 00:00:18]} hxg3 {[%clk 01:00:51]} {[%emt
00:00:09]} 21. h3 {[%clk 00:26:39]} {[%emt 00:00:30]} Bg5 {[%clk 00:59:20]}
{[%emt 00:02:00]} 22. Nc5 {[%clk 00:25:34]} {[%emt 00:01:35]} Ra8 {[%clk
00:57:40]} {[%emt 00:02:12]} 23. Ne2 {[%clk 00:25:31]} {[%emt 00:00:32]} Rb8
{[%clk 00:52:38]} {[%emt 00:05:32]} 24. Rac1 {[%clk 00:24:32]} {[%emt
00:01:28]} Rg6 {[%clk 00:48:41]} {[%emt 00:04:28]} 25. Qd3 {[%clk 00:23:02]}
{[%emt 00:02:01]} Bxe3+ {[%clk 00:46:56]} {[%emt 00:02:14]} 26. Qxe3 {[%clk
00:23:29]} {[%emt 00:00:03]} Qh4 {[%clk 00:45:59]} {[%emt 00:01:28]} 27. Rf1
{[%clk 00:23:19]} {[%emt 00:00:39]} Ke7 {[%clk 00:38:46]} {[%emt 00:07:42]} 28.
Nxd7 {[%clk 00:20:57]} {[%emt 00:02:54]} Kxd7 {[%clk 00:34:51]} {[%emt
00:04:24]} 29. Rxf7+ {[%clk 00:21:07]} {[%emt 00:00:20]} Kd8 {[%clk 00:34:33]}
{[%emt 00:00:49]} 30. Rxc6 {[%clk 00:20:09]} {[%emt 00:01:27]} Rb7 {[%clk
00:15:17]} {[%emt 00:19:46]} 31. d5 {[%clk 00:15:23]} {[%emt 00:05:16]} Rg7
{[%clk 00:08:57]} {[%emt 00:06:49]} 32. Rf8+ {[%clk 00:09:50]} {[%emt
00:06:02]} Kd7 {[%clk 00:06:40]} {[%emt 00:02:49]} 33. Qc5 {[%clk 00:09:20]}
{[%emt 00:01:00]} Qe7 {[%clk 00:01:35]} {[%emt 00:05:36]} 34. dxe6+ {[%clk
00:08:26]} {[%emt 00:01:23]} Qxe6 {[%clk 00:01:53]} {[%emt 00:00:13]} 35. Rxe6
{[%clk 00:08:26]} {[%emt 00:00:29]} Nxe6 {[%emt 00:03:22]} 36. Qc8+ {[%clk
00:05:48]} Kd6 {[%clk 00:02:22]} {[%emt 00:00:17]} 37. Rf5 {[%clk 00:03:28]}
{[%emt 00:02:49]} Rgc7 {[%clk 00:01:34]} {[%emt 00:01:19]} 38. Qh8 {[%clk
00:03:01]} {[%emt 00:00:57]} Nhf4 {[%clk 00:00:49]} {[%emt 00:01:15]} 39. Qe5+
{[%clk 00:02:43]} {[%emt 00:00:48]} Kd7 {[%clk 00:01:06]} {[%emt 00:00:14]} 40.
Rxf4 {[%clk 00:02:56]} {[%emt 00:00:16]} Nxf4 {[%clk 00:00:57]} {[%emt
00:00:39]} 41. Qxf4 {[%clk 00:03:03]} {[%emt 00:00:23]} Rc2 {[%clk 00:30:14]}
{[%emt 00:01:13]} 42. Qf7+ {[%clk 00:31:28]} {[%emt 00:02:04]} Kc8 {[%clk
00:30:11]} {[%emt 00:00:34]} 43. Qe8+ {[%clk 00:31:01]} {[%emt 00:00:55]} Kc7
{[%clk 00:30:35]} {[%emt 00:00:08]} 44. Nxg3 {[%clk 00:31:22]} {[%emt
00:00:09]} Kb6 {[%clk 00:30:19]} {[%emt 00:00:46]} 45. Nf5 {[%clk 00:30:05]}
{[%emt 00:01:46]} Rbc7 {[%clk 00:29:32]} {[%emt 00:01:18]} 46. Ne3 {[%clk
00:30:15]} {[%emt 00:00:20]} Rc1+ {[%clk 00:29:27]} {[%emt 00:00:35]} 47. Kh2
{[%clk 00:30:36]} {[%emt 00:00:07]} Rc8 {[%clk 00:27:24]} {[%emt 00:02:35]} 48.
Nd5+ {[%clk 00:30:05]} {[%emt 00:01:00]} Kb7 {[%clk 00:27:34]} {[%emt
00:00:21]} 49. Qb5+ {[%clk 00:29:20]} {[%emt 00:01:14]} Ka7 {[%clk 00:27:52]}
{[%emt 00:00:13]} 50. a4 {[%clk 00:28:48]} {[%emt 00:01:02]} R8c6 {[%clk
00:26:41]} {[%emt 00:01:41]} 51. a5 {[%clk 00:28:02]} {[%emt 00:01:16]} R1c2
{[%clk 00:26:18]} {[%emt 00:00:53]} 52. Ne7 {[%clk 00:25:00]} {[%emt 00:03:32]}
Rf6 {[%clk 00:25:01]} {[%emt 00:01:47]} 53. Qd7+ {[%clk 00:23:48]} {[%emt
00:01:40]} Ka6 {[%clk 00:24:06]} {[%emt 00:01:27]} 54. Qd3+ {[%clk 00:24:05]}
{[%emt 00:00:13]} 1-0

[Event "Masterklassen 2025"]
[Site "Uppsala, Sweden"]
[Date "2025.06.30"]
[Round "3.15"]
[White "Darnell, Anton"]
[Black "Jaderberg, Bjorn"]
[Result "1-0"]
[TimeControl "90 min for 40 move + 30 min with an increment of 30 sec starting move 1"]
[WhiteFideId "1720244"]
[BlackFideId "1712403"]
[WhiteElo "2007"]
[BlackElo "2112"]

1. d4 {[%clk 01:30:56]} {[%emt 00:00:02]} e6 {[%clk 01:30:48]} {[%emt
00:00:13]} 2. Bf4 {[%clk 01:30:20]} {[%emt 00:01:06]} f5 {[%clk 01:30:51]}
{[%emt 00:00:27]} 3. Nc3 {[%clk 01:30:22]} {[%emt 00:00:28]} Nf6 {[%clk
01:31:07]} {[%emt 00:00:14]} 4. g4 {[%clk 01:30:32]} {[%emt 00:00:20]} d5
{[%clk 01:30:11]} {[%emt 00:01:26]} 5. gxf5 {[%clk 01:30:53]} {[%emt 00:00:09]}
exf5 {[%clk 01:30:33]} {[%emt 00:00:08]} 6. Qd3 {[%clk 01:23:28]} {[%emt
00:07:54]} a6 {[%clk 01:23:11]} {[%emt 00:07:53]} 7. h4 {[%clk 01:19:25]}
{[%emt 00:04:32]} Be6 {[%clk 01:19:44]} {[%emt 00:03:58]} 8. Nh3 {[%clk
01:16:20]} {[%emt 00:03:34]} Bd6 {[%clk 01:09:55]} {[%emt 00:10:20]} 9. Rg1
{[%clk 01:05:51]} {[%emt 00:10:59]} Nh5 {[%clk 01:07:55]} {[%emt 00:02:29]} 10.
Qe3 {[%clk 00:54:08]} {[%emt 00:12:11]} Qe7 {[%clk 00:59:27]} {[%emt 00:08:59]}
11. Bxd6 {[%clk 00:44:27]} {[%emt 00:10:11]} Qxd6 {[%clk 00:55:06]} {[%emt
00:04:50]} 12. Ng5 {[%clk 00:43:23]} {[%emt 00:01:34]} Kd7 {[%clk 00:54:45]}
{[%emt 00:00:51]} 13. Nxe6 {[%clk 00:42:41]} {[%emt 00:01:13]} Qxe6 {[%clk
00:54:55]} {[%emt 00:00:20]} 14. Qf3 {[%clk 00:42:55]} {[%emt 00:00:16]} g6
{[%clk 00:51:06]} {[%emt 00:04:19]} 15. Qxd5+ {[%clk 00:35:06]} {[%emt
00:08:19]} Qxd5 {[%clk 00:51:21]} {[%emt 00:00:14]} 16. Nxd5 {[%clk 00:35:33]}
{[%emt 00:00:04]} Kd6 {[%clk 00:51:16]} {[%emt 00:00:35]} 17. Bg2 {[%clk
00:34:18]} {[%emt 00:01:44]} Nd7 {[%clk 00:50:36]} {[%emt 00:01:11]} 18. c4
{[%clk 00:33:44]} {[%emt 00:01:05]} Rac8 {[%clk 00:49:37]} {[%emt 00:01:28]} 19.
Bf3 {[%clk 00:32:02]} {[%emt 00:02:12]} c6 {[%clk 00:49:23]} {[%emt 00:00:44]}
20. Bxh5 {[%clk 00:30:12]} {[%emt 00:02:20]} cxd5 {[%clk 00:48:50]} {[%emt
00:01:04]} 21. c5+ {[%clk 00:30:22]} {[%emt 00:00:20]} Ke6 {[%clk 00:43:50]}
{[%emt 00:05:29]} 22. Bf3 {[%clk 00:30:16]} {[%emt 00:00:35]} Nf6 {[%clk
00:44:05]} {[%emt 00:00:15]} 23. b4 {[%clk 00:28:02]} {[%emt 00:02:45]} Rhg8
{[%clk 00:43:26]} {[%emt 00:01:08]} 24. Kd2 {[%clk 00:27:02]} {[%emt 00:01:30]}
h6 {[%clk 00:39:54]} {[%emt 00:04:02]} 25. e3 {[%clk 00:25:39]} {[%emt
00:01:54]} Ne4+ {[%clk 00:39:37]} {[%emt 00:00:47]} 26. Bxe4 {[%clk 00:25:02]}
{[%emt 00:01:07]} dxe4 {[%clk 00:39:56]} {[%emt 00:00:12]} 27. f4 {[%clk
00:16:53]} {[%emt 00:08:38]} exf3 {[%clk 00:37:22]} {[%emt 00:01:20]} 28. Raf1
{[%clk 00:17:21]} {[%emt 00:01:46]} g5 {[%clk 00:37:29]} {[%emt 00:00:23]} 29.
hxg5 {[%clk 00:17:14]} {[%emt 00:00:36]} hxg5 {[%clk 00:37:19]} {[%emt
00:00:41]} 30. Rxf3 {[%clk 00:17:38]} {[%emt 00:00:06]} g4 {[%clk 00:37:33]}
{[%emt 00:00:16]} 31. Rf4 {[%clk 00:08:34]} {[%emt 00:09:34]} Rcd8 {[%clk
00:35:04]} {[%emt 00:03:00]} 32. Kd3 {[%clk 00:07:19]} {[%emt 00:01:44]} Rh8
{[%clk 00:35:08]} {[%emt 00:00:25]} 33. Rgf1 {[%clk 00:03:45]} {[%emt
00:04:05]} Rh5 {[%clk 00:34:51]} {[%emt 00:00:47]} 34. a4 {[%clk 00:03:43]}
{[%emt 00:00:33]} Rg8 {[%clk 00:30:21]} {[%emt 00:04:59]} 35. e4 {[%clk
00:01:16]} {[%emt 00:02:57]} fxe4+ {[%clk 00:29:07]} {[%emt 00:01:44]} 36. Kxe4
{[%clk 00:01:17]} {[%emt 00:00:29]} Rg6 {[%clk 00:26:59]} {[%emt 00:02:38]} 37.
Rg1 {[%clk 00:00:39]} {[%emt 00:01:08]} g3 {[%clk 00:27:09]} {[%emt 00:00:19]}
38. Rg2 {[%clk 00:00:42]} {[%emt 00:00:28]} Rgg5 {[%clk 00:26:17]} {[%emt
00:01:22]} 39. Kf3 {[%clk 00:00:42]} {[%emt 00:00:30]} Rh3 {[%clk 00:25:28]}
{[%emt 00:01:18]} 40. Rg4 {[%clk 00:00:34]} {[%emt 00:00:38]} Rxg4 {[%clk
00:24:02]} {[%emt 00:01:57]} 41. Kxg4 {[%clk 00:30:16]} {[%emt 00:00:49]} Rh2
{[%clk 00:54:20]} {[%emt 00:00:11]} 42. Kxg3 {[%clk 00:29:43]} {[%emt
00:01:04]} Rxg2+ {[%clk 00:54:42]} {[%emt 00:00:08]} 43. Kxg2 {[%clk 00:30:04]}
{[%emt 00:00:09]} Kd5 {[%clk 00:55:08]} {[%emt 00:00:04]} 44. b5 {[%clk
00:30:24]} {[%emt 00:00:11]} 1-0

[Event "Masterklassen 2025"]
[Site "Uppsala, Sweden"]
[Date "2025.06.30"]
[Round "3.16"]
[White "Mardell, Jimmy"]
[Black "Schriever-Abeln, Marius"]
[Result "0-1"]
[TimeControl "90 min for 40 move + 30 min with an increment of 30 sec starting move 1"]
[WhiteFideId "1705610"]
[BlackFideId "1752650"]
[WhiteElo "2227"]
[BlackElo "2052"]

1. e4 {[%clk 01:30:56]} {[%emt 00:00:03]} c5 {[%clk 01:30:50]} {[%emt
00:00:11]} 2. Nf3 {[%clk 01:31:13]} {[%emt 00:00:13]} d6 {[%clk 01:31:09]}
{[%emt 00:00:11]} 3. d4 {[%clk 01:31:32]} {[%emt 00:00:10]} cxd4 {[%clk
01:31:34]} {[%emt 00:00:06]} 4. Nxd4 {[%clk 01:31:58]} {[%emt 00:00:05]} Nf6
{[%clk 01:31:58]} {[%emt 00:00:05]} 5. Nc3 {[%clk 01:32:23]} {[%emt 00:00:04]}
a6 {[%clk 01:32:23]} {[%emt 00:00:06]} 6. Bd3 {[%clk 01:30:11]} {[%emt
00:02:41]} e5 {[%clk 01:28:38]} {[%emt 00:04:16]} 7. Nde2 {[%clk 01:28:37]}
{[%emt 00:02:03]} Be6 {[%clk 01:25:26]} {[%emt 00:03:42]} 8. O-O {[%clk
01:27:10]} {[%emt 00:01:57]} Be7 {[%clk 01:24:54]} {[%emt 00:01:03]} 9. Re1
{[%clk 01:23:06]} {[%emt 00:04:34]} O-O {[%clk 01:23:39]} {[%emt 00:01:45]} 10.
Ng3 {[%clk 01:20:11]} {[%emt 00:03:24]} Nbd7 {[%clk 01:17:30]} {[%emt
00:06:39]} 11. Nf1 {[%clk 00:58:29]} {[%emt 00:22:13]} b5 {[%clk 01:08:47]}
{[%emt 00:09:12]} 12. Ne3 {[%clk 00:51:16]} {[%emt 00:07:41]} Nb6 {[%clk
01:03:50]} {[%emt 00:05:28]} 13. a4 {[%clk 00:48:51]} {[%emt 00:02:55]} b4
{[%clk 00:44:49]} {[%emt 00:19:31]} 14. Ncd5 {[%clk 00:49:13]} {[%emt
00:00:08]} Nbxd5 {[%clk 00:43:19]} {[%emt 00:02:00]} 15. exd5 {[%clk 00:46:53]}
{[%emt 00:02:50]} Bc8 {[%clk 00:41:13]} {[%emt 00:02:35]} 16. a5 {[%clk
00:44:29]} {[%emt 00:02:55]} Ne8 {[%clk 00:33:27]} {[%emt 00:08:16]} 17. Nc4
{[%clk 00:38:13]} {[%emt 00:06:45]} f5 {[%clk 00:29:17]} {[%emt 00:04:41]} 18.
f4 {[%clk 00:37:29]} {[%emt 00:01:13]} e4 {[%clk 00:26:01]} {[%emt 00:03:46]}
19. Bf1 {[%clk 00:37:49]} {[%emt 00:00:10]} Bf6 {[%clk 00:24:14]} {[%emt
00:02:17]} 20. Be3 {[%clk 00:36:19]} {[%emt 00:02:00]} Nc7 {[%clk 00:22:14]}
{[%emt 00:02:31]} 21. Ra4 {[%clk 00:32:17]} {[%emt 00:04:31]} Rb8 {[%clk
00:19:19]} {[%emt 00:03:26]} 22. Bb6 {[%clk 00:31:30]} {[%emt 00:01:17]} Qd7
{[%clk 00:17:00]} {[%emt 00:02:48]} 23. Rxb4 {[%clk 00:29:52]} {[%emt
00:02:09]} Bb7 {[%clk 00:16:34]} {[%emt 00:00:56]} 24. Ne3 {[%clk 00:28:31]}
{[%emt 00:01:50]} g5 {[%clk 00:09:59]} {[%emt 00:07:06]} 25. g3 {[%clk
00:10:56]} {[%emt 00:18:05]} gxf4 {[%clk 00:09:10]} {[%emt 00:01:18]} 26. gxf4
{[%clk 00:11:21]} {[%emt 00:00:05]} Ba8 {[%clk 00:06:19]} {[%emt 00:03:21]} 27.
Bh3 {[%clk 00:09:45]} {[%emt 00:02:05]} Bg7 {[%clk 00:04:52]} {[%emt 00:01:58]}
28. c4 {[%clk 00:08:35]} {[%emt 00:01:41]} Rf6 {[%clk 00:03:17]} {[%emt
00:02:05]} 29. Kh1 {[%clk 00:07:00]} {[%emt 00:02:04]} Qf7 {[%clk 00:02:06]}
{[%emt 00:01:42]} 30. Rb3 {[%clk 00:05:01]} {[%emt 00:02:29]} Kh8 {[%clk
00:00:44]} {[%emt 00:01:53]} 31. Nxf5 {[%clk 00:04:17]} {[%emt 00:01:13]} Nxd5
{[%clk 00:00:34]} {[%emt 00:00:40]} 32. Nxd6 {[%clk 00:01:50]} {[%emt
00:02:57]} Rxd6 {[%clk 00:00:37]} {[%emt 00:00:27]} 33. cxd5 {[%clk 00:01:42]}
{[%emt 00:00:39]} Bxd5 {[%clk 00:00:52]} {[%emt 00:00:14]} 34. Rbe3 {[%clk
00:02:03]} {[%emt 00:00:09]} Bxb2 {[%clk 00:00:46]} {[%emt 00:00:36]} 35. Bd4+
{[%clk 00:01:28]} {[%emt 00:01:04]} Bxd4 {[%clk 00:00:49]} {[%emt 00:00:27]} 36.
Qxd4+ {[%clk 00:01:53]} {[%emt 00:00:05]} Qg7 {[%clk 00:00:59]} {[%emt
00:00:21]} 37. Qc5 {[%clk 00:01:48]} {[%emt 00:00:35]} Rbd8 {[%clk 00:01:00]}
{[%emt 00:00:29]} 38. f5 {[%clk 00:00:41]} {[%emt 00:01:36]} Bb7 {[%clk
00:00:51]} {[%emt 00:00:39]} 39. Qb4 {[%clk 00:00:39]} {[%emt 00:00:33]} Ba8
{[%clk 00:01:00]} {[%emt 00:00:21]} 40. Bg2 {[%clk 00:00:39]} {[%emt 00:00:30]}
Rd2 {[%clk 00:00:40]} {[%emt 00:00:49]} 41. Rg3 {[%clk 00:24:24]} {[%emt
00:06:46]} Qe5 {[%clk 00:25:34]} {[%emt 00:05:36]} 42. Qc3 {[%clk 00:13:57]}
{[%emt 00:10:56]} Qxc3 {[%clk 00:15:48]} {[%emt 00:10:16]} 43. Rxc3 {[%clk
00:14:21]} {[%emt 00:00:06]} R2d5 {[%clk 00:14:12]} {[%emt 00:02:06]} 44. f6
{[%clk 00:05:50]} {[%emt 00:09:02]} Rf5 {[%clk 00:10:07]} {[%emt 00:04:34]} 45.
Rce3 {[%clk 00:04:14]} {[%emt 00:02:06]} Re8 {[%clk 00:07:46]} {[%emt
00:02:51]} 46. Bxe4 {[%clk 00:03:10]} {[%emt 00:01:34]} Rxe4 {[%clk 00:02:37]}
{[%emt 00:05:40]} 47. Rxe4 {[%clk 00:03:27]} {[%emt 00:00:13]} Rf4 {[%clk
00:02:40]} {[%emt 00:00:26]} 48. Kg1 {[%clk 00:01:04]} {[%emt 00:02:54]} Bxe4
{[%clk 00:02:21]} {[%emt 00:00:49]} 0-1

[Event "Masterklassen 2025"]
[Site "Uppsala, Sweden"]
[Date "2025.07.01"]
[Round "4.1"]
[White "Odell-Johansson, Leo"]
[Black "Cederstam, Carl"]
[Result "0-1"]
[TimeControl "90 min for 40 move + 30 min with an increment of 30 sec starting move 1"]
[BlackTitle "FM"]
[WhiteFideId "1722727"]
[BlackFideId "1713329"]
[WhiteElo "1991"]
[BlackElo "2316"]

1. c4 {[%clk 01:26:54]} {[%emt 00:04:05]} Nf6 {[%clk 01:27:36]} {[%emt
00:03:24]} 2. Nc3 {[%clk 01:27:20]} {[%emt 00:00:04]} g6 {[%clk 01:26:34]}
{[%emt 00:01:32]} 3. g3 {[%clk 01:27:42]} {[%emt 00:00:08]} Bg7 {[%clk
01:26:55]} {[%emt 00:00:09]} 4. Bg2 {[%clk 01:28:07]} {[%emt 00:00:05]} O-O
{[%clk 01:27:05]} {[%emt 00:00:20]} 5. e4 {[%clk 01:28:32]} {[%emt 00:00:05]}
d6 {[%clk 01:26:55]} {[%emt 00:00:40]} 6. Nge2 {[%clk 01:28:51]} {[%emt
00:00:11]} c5 {[%clk 01:26:18]} {[%emt 00:01:07]} 7. d3 {[%clk 01:29:05]}
{[%emt 00:00:16]} Nc6 {[%clk 01:26:40]} {[%emt 00:00:07]} 8. O-O {[%clk
01:29:00]} {[%emt 00:00:36]} Rb8 {[%clk 01:24:26]} {[%emt 00:02:44]} 9. Rb1
{[%clk 01:27:17]} {[%emt 00:02:13]} a6 {[%clk 01:18:03]} {[%emt 00:06:53]} 10.
a4 {[%clk 01:27:44]} {[%emt 00:00:03]} Bg4 {[%clk 01:13:50]} {[%emt 00:04:42]}
11. f3 {[%clk 01:19:55]} {[%emt 00:08:20]} Bd7 {[%clk 01:13:47]} {[%emt
00:00:33]} 12. Be3 {[%clk 01:15:39]} {[%emt 00:04:46]} Qc8 {[%clk 01:13:14]}
{[%emt 00:01:02]} 13. b3 {[%clk 01:12:12]} {[%emt 00:03:58]} Bh3 {[%clk
01:07:46]} {[%emt 00:05:57]} 14. Qd2 {[%clk 01:06:16]} {[%emt 00:06:27]} Bxg2
{[%clk 01:05:44]} {[%emt 00:02:32]} 15. Kxg2 {[%clk 01:00:38]} {[%emt
00:06:08]} Ne8 {[%clk 00:42:16]} {[%emt 00:23:57]} 16. Bh6 {[%clk 00:49:19]}
{[%emt 00:11:50]} Nc7 {[%clk 00:35:18]} {[%emt 00:07:28]} 17. Bxg7 {[%clk
00:47:57]} {[%emt 00:01:52]} Kxg7 {[%clk 00:35:46]} {[%emt 00:00:02]} 18. d4
{[%clk 00:44:09]} {[%emt 00:04:18]} cxd4 {[%clk 00:32:52]} {[%emt 00:03:24]} 19.
Nxd4 {[%clk 00:44:36]} {[%emt 00:00:03]} Ne6 {[%clk 00:32:50]} {[%emt
00:00:32]} 20. Nc2 {[%clk 00:41:05]} {[%emt 00:03:57]} Qd7 {[%clk 00:28:36]}
{[%emt 00:04:48]} 21. Ne3 {[%clk 00:38:51]} {[%emt 00:02:44]} Ned4 {[%clk
00:14:11]} {[%emt 00:14:54]} 22. b4 {[%clk 00:33:42]} {[%emt 00:05:41]} e5
{[%clk 00:13:41]} {[%emt 00:00:59]} 23. b5 {[%clk 00:21:41]} {[%emt 00:12:31]}
Ne7 {[%clk 00:13:43]} {[%emt 00:00:28]} 24. Nc2 {[%clk 00:15:01]} {[%emt
00:07:10]} Nxc2 {[%clk 00:13:39]} {[%emt 00:00:34]} 25. Qxc2 {[%clk 00:15:29]}
{[%emt 00:00:02]} Rbc8 {[%clk 00:12:34]} {[%emt 00:01:35]} 26. Ne2 {[%clk
00:09:17]} {[%emt 00:06:41]} Qc7 {[%clk 00:11:46]} {[%emt 00:01:18]} 27. Rfc1
{[%clk 00:09:15]} {[%emt 00:00:33]} Qc5 {[%clk 00:11:38]} {[%emt 00:00:39]} 28.
Qd2 {[%clk 00:06:39]} {[%emt 00:03:05]} f5 {[%clk 00:08:59]} {[%emt 00:03:10]}
29. exf5 {[%clk 00:07:02]} {[%emt 00:00:07]} Nxf5 {[%clk 00:08:42]} {[%emt
00:00:46]} 30. Rb3 {[%clk 00:07:29]} {[%emt 00:00:03]} Rc7 {[%clk 00:06:57]}
{[%emt 00:02:15]} 31. Rd3 {[%clk 00:04:08]} {[%emt 00:03:51]} Rcf7 {[%clk
00:07:26]} {[%emt 00:00:01]} 32. Nc3 {[%clk 00:02:36]} {[%emt 00:02:02]} Qxc4
{[%clk 00:07:09]} {[%emt 00:00:48]} 33. Ne4 {[%clk 00:01:58]} {[%emt 00:01:06]}
Qxa4 {[%clk 00:06:53]} {[%emt 00:00:47]} 34. Ng5 {[%clk 00:01:07]} {[%emt
00:01:21]} Re7 {[%clk 00:07:18]} {[%emt 00:00:04]} 35. Rxd6 {[%clk 00:00:51]}
{[%emt 00:00:48]} Nd4 {[%clk 00:03:02]} {[%emt 00:04:44]} 36. bxa6 {[%clk
00:00:46]} {[%emt 00:00:36]} bxa6 {[%clk 00:03:31]} {[%emt 00:00:02]} 37. f4
{[%clk 00:00:52]} {[%emt 00:00:23]} Qe8 {[%clk 00:02:28]} {[%emt 00:01:33]} 38.
fxe5 {[%clk 00:01:12]} {[%emt 00:00:10]} Nb3 {[%clk 00:01:46]} {[%emt
00:01:11]} 39. Qc3 {[%clk 00:00:55]} {[%emt 00:00:48]} Nxc1 {[%clk 00:02:08]}
{[%emt 00:00:09]} 40. e6+ {[%clk 00:00:42]} {[%emt 00:00:42]} Kg8 {[%clk
00:02:09]} {[%emt 00:00:26]} 41. Nf7 {[%clk 00:23:04]} {[%emt 00:08:10]} Rexf7
{[%clk 00:30:35]} {[%emt 00:02:05]} 42. exf7+ {[%clk 00:20:52]} {[%emt
00:02:41]} Qxf7 {[%clk 00:29:32]} {[%emt 00:01:33]} 43. Qxc1 {[%clk 00:20:49]}
{[%emt 00:00:34]} a5 {[%clk 00:29:22]} {[%emt 00:00:40]} 44. Qd2 {[%clk
00:19:08]} {[%emt 00:02:11]} Qf1# {[%clk 00:29:42]} {[%emt 00:00:10]} 0-1